fUST/lending_fUST_20260503
["ID","MTS","AMOUNT","RATE_DAILY","PERIOD"]
[421523243,1777818652000,-500.0,0.00016712,2]
[421523240,1777818652000,-1060.28,0.00016712,2]
[421523245,1777818652000,-500.0,0.00016712,2]
[421523237,1777818652000,-500.0,0.00016712,2]
[421523236,1777818652000,-603.58,0.00016712,2]
[421523244,1777818652000,-577.94,0.00016712,2]
[421523242,1777818652000,-500.0,0.00016712,2]
[421523235,1777818652000,-500.0,0.00016712,2]
[421523238,1777818652000,-500.0,0.00016712,2]
[421523239,1777818652000,-2520.39,0.00016712,2]
[421523248,1777818652000,-500.0,0.00016712,2]
[421523276,1777818652000,-1118.73,0.00016712,2]
[421523340,1777818652000,-500.0,0.00016712,2]
[421523282,1777818652000,-1000.0,0.00016712,2]
[421523312,1777818652000,-8190.344327,0.00016712,2]
[421523313,1777818652000,-4371.22,0.00016712,2]
[421523314,1777818652000,-500.0,0.00016712,2]
[421523319,1777818652000,-500.0,0.00016712,2]
[421523317,1777818652000,-510.19,0.00016712,2]
[421523315,1777818652000,-500.0,0.00016712,2]
[421523316,1777818652000,-538.27,0.00016712,2]
[421523318,1777818652000,-500.0,0.00016712,2]
[421523320,1777818652000,-1838.88,0.00016712,2]
[421523323,1777818652000,-500.0,0.00016712,2]
[421523326,1777818652000,-500.0,0.00016712,2]
[421523327,1777818652000,-500.0,0.00016712,2]
[421523324,1777818652000,-500.0,0.00016712,2]
[421523325,1777818652000,-1043.53,0.00016712,2]
[421523331,1777818652000,-500.0,0.00016712,2]
[421523329,1777818652000,-595.701886,0.00016712,2]
[421523335,1777818652000,-732.721412,0.00016712,2]
[421523334,1777818652000,-500.0,0.00016712,2]
[421523336,1777818652000,-500.0,0.00016712,2]
[421523328,1777818652000,-500.0,0.00016712,2]
[421523330,1777818652000,-500.0,0.00016712,2]
[421523332,1777818652000,-500.0,0.00016712,2]
[421523338,1777818652000,-6556.27,0.00016712,2]
[421523339,1777818652000,-668.77,0.00016712,2]
[421523337,1777818652000,-500.0,0.00016712,2]
[421523341,1777818652000,-500.0,0.00016712,2]
[421523343,1777818652000,-500.0,0.00016712,2]
[421523342,1777818652000,-500.0,0.00016712,2]
[421523281,1777818652000,-500.0,0.00016712,2]
[421523321,1777818652000,-593.56,0.00016712,2]
[421523311,1777818652000,-500.0,0.00016712,2]
[421523333,1777818652000,-500.0,0.00016712,2]
[421523310,1777818652000,-500.0,0.00016712,2]
[421523279,1777818652000,-500.0,0.00016712,2]
[421523322,1777818652000,-500.0,0.00016712,2]
[421523283,1777818652000,-500.0,0.00016712,2]
[421523284,1777818652000,-500.0,0.00016712,2]
[421523280,1777818652000,-500.0,0.00016712,2]
[421523297,1777818652000,-500.0,0.00016712,2]
[421523286,1777818652000,-500.0,0.00016712,2]
[421523298,1777818652000,-500.0,0.00016712,2]
[421523285,1777818652000,-500.0,0.00016712,2]
[421523295,1777818652000,-500.0,0.00016712,2]
[421523294,1777818652000,-989.72,0.00016712,2]
[421523287,1777818652000,-770.12,0.00016712,2]
[421523293,1777818652000,-164.87981905,0.00016712,2]
[421523289,1777818652000,-500.0,0.00016712,2]
[421523292,1777818652000,-500.0,0.00016712,2]
[421523296,1777818652000,-936.77,0.00016712,2]
[421523288,1777818652000,-3817.31,0.00016712,2]
[421523308,1777818652000,-632.98,0.00016712,2]
[421523306,1777818652000,-500.0,0.00016712,2]
[421523309,1777818652000,-500.0,0.00016712,2]
[421523302,1777818652000,-500.0,0.00016712,2]
[421523304,1777818652000,-500.0,0.00016712,2]
[421523303,1777818652000,-500.0,0.00016712,2]
[421523307,1777818652000,-500.0,0.00016712,2]
[421523301,1777818652000,-500.0,0.00016712,2]
[421523300,1777818652000,-500.0,0.00016712,2]
[421523299,1777818652000,-500.0,0.00016712,2]
[421523290,1777818652000,-500.0,0.00016712,2]
[421523291,1777818652000,-583.98,0.00016712,2]
[421523305,1777818652000,-279.90727158,0.00016712,2]
[421523392,1777818653000,-500.0,0.00016712,2]
[421523391,1777818653000,-500.0,0.00016712,2]
[421523393,1777818653000,-1088.76,0.00016712,2]
[421523381,1777818653000,-500.0,0.00016712,2]
[421523388,1777818653000,-500.0,0.00016712,2]
[421523386,1777818653000,-160.14695451,0.00016712,2]
[421523390,1777818653000,-500.0,0.00016712,2]
[421523385,1777818653000,-500.0,0.00016712,2]
[421523387,1777818653000,-1446.0,0.00016712,2]
[421523384,1777818653000,-293.28676338,0.00016712,2]
[421523382,1777818653000,-500.0,0.00016712,2]
[421523383,1777818653000,-500.0,0.00016712,2]
[421523395,1777818653000,-866.11,0.00016712,2]
[421523389,1777818653000,-2878.1,0.00016712,2]
[421523394,1777818653000,-2889.29,0.00016712,2]
[421523410,1777818653000,-1426.82,0.00016712,2]
[421523397,1777818653000,-974.58,0.00016712,2]
[421523380,1777818653000,-500.0,0.00016712,2]
[421523409,1777818653000,-500.0,0.00016712,2]
[421523411,1777818653000,-500.0,0.00016712,2]
[421523408,1777818653000,-500.0,0.00016712,2]
[421523400,1777818653000,-940.54,0.00016712,2]
[421523402,1777818653000,-713.46,0.00016712,2]
[421523396,1777818653000,-500.0,0.00016712,2]
[421523401,1777818653000,-500.0,0.00016712,2]
[421523405,1777818653000,-500.0,0.00016712,2]
[421523407,1777818653000,-500.0,0.00016712,2]
[421523398,1777818653000,-500.0,0.00016712,2]
[421523403,1777818653000,-500.0,0.00016712,2]
[421523406,1777818653000,-1001.65,0.00016712,2]
[421523404,1777818653000,-500.0,0.00016712,2]
[421523399,1777818653000,-500.0,0.00016712,2]
[421523376,1777818653000,-1137.21,0.00016712,2]
[421523350,1777818653000,-500.0,0.00016712,2]
[421523372,1777818653000,-500.0,0.00016712,2]
[421523358,1777818653000,-500.0,0.00016712,2]
[421523355,1777818653000,-1020.99,0.00016712,2]
[421523357,1777818653000,-500.0,0.00016712,2]
[421523360,1777818653000,-1340.29,0.00016712,2]
[421523354,1777818653000,-500.0,0.00016712,2]
[421523356,1777818653000,-500.0,0.00016712,2]
[421523359,1777818653000,-3284.05,0.00016712,2]
[421523352,1777818653000,-571.53,0.00016712,2]
[421523346,1777818653000,-500.0,0.00016712,2]
[421523345,1777818653000,-951.29,0.00016712,2]
[421523347,1777818653000,-500.0,0.00016712,2]
[421523351,1777818653000,-500.0,0.00016712,2]
[421523349,1777818653000,-11974.294578,0.00016712,2]
[421523348,1777818653000,-3209.2,0.00016712,2]
[421523344,1777818653000,-1506.92,0.00016712,2]
[421523374,1777818653000,-500.0,0.00016712,2]
[421523353,1777818653000,-1939.53,0.00016712,2]
[421523361,1777818653000,-664.83,0.00016712,2]
[421523379,1777818653000,-500.0,0.00016712,2]
[421523370,1777818653000,-6620.89,0.00016712,2]
[421523368,1777818653000,-1280.18,0.00016712,2]
[421523369,1777818653000,-500.0,0.00016712,2]
[421523377,1777818653000,-655.94,0.00016712,2]
[421523375,1777818653000,-2979.68,0.00016712,2]
[421523362,1777818653000,-500.0,0.00016712,2]
[421523378,1777818653000,-500.0,0.00016712,2]
[421523371,1777818653000,-500.0,0.00016712,2]
[421523373,1777818653000,-1123.92,0.00016712,2]
[421523366,1777818653000,-937.64,0.00016712,2]
[421523363,1777818653000,-500.0,0.00016712,2]
[421523365,1777818653000,-1035.76,0.00016712,2]
[421523364,1777818653000,-500.0,0.00016712,2]
[421523367,1777818653000,-938.22,0.00016712,2]
[421523412,1777818653000,-555.13242615,0.00016712,2]
[421523419,1777818653000,-598.78470181,0.00016712,2]
[421523414,1777818653000,-500.0,0.00016712,2]
[421523461,1777818653000,-1035.99,0.00016712,2]
[421523463,1777818653000,-1322.26,0.00016712,2]
[421523462,1777818653000,-500.0,0.00016712,2]
[421523455,1777818653000,-500.0,0.00016712,2]
[421523458,1777818653000,-500.0,0.00016712,2]
[421523456,1777818653000,-500.0,0.00016712,2]
[421523454,1777818653000,-500.0,0.00016712,2]
[421523457,1777818653000,-500.0,0.00016712,2]
[421523452,1777818653000,-500.0,0.00016712,2]
[421523453,1777818653000,-500.0,0.00016712,2]
[421523460,1777818653000,-500.0,0.00016712,2]
[421523459,1777818653000,-500.0,0.00016712,2]
[421523464,1777818653000,-500.0,0.00016712,2]
[421523467,1777818653000,-410.99351665,0.00016712,2]
[421523468,1777818653000,-500.0,0.00016712,2]
[421523466,1777818653000,-500.0,0.00016712,2]
[421523465,1777818653000,-630.82,0.00016712,2]
[421523413,1777818653000,-500.0,0.00016712,2]
[421523482,1777818653000,-926.46,0.00016712,2]
[421523481,1777818653000,-500.0,0.00016712,2]
[421523480,1777818653000,-1644.45,0.00016712,2]
[421523478,1777818653000,-500.0,0.00016712,2]
[421523479,1777818653000,-1194.55,0.00016712,2]
[421523451,1777818653000,-500.0,0.00016712,2]
[421523472,1777818653000,-500.0,0.00016712,2]
[421523469,1777818653000,-500.0,0.00016712,2]
[421523470,1777818653000,-500.0,0.00016712,2]
[421523471,1777818653000,-500.0,0.00016712,2]
[421523477,1777818653000,-500.0,0.00016712,2]
[421523473,1777818653000,-500.0,0.00016712,2]
[421523475,1777818653000,-500.0,0.00016712,2]
[421523474,1777818653000,-500.0,0.00016712,2]
[421523450,1777818653000,-500.0,0.00016712,2]
[421523476,1777818653000,-739.13,0.00016712,2]
[421523449,1777818653000,-6414.89,0.00016712,2]
[421523429,1777818653000,-547.61,0.00016712,2]
[421523433,1777818653000,-500.0,0.00016712,2]
[421523432,1777818653000,-500.0,0.00016712,2]
[421523423,1777818653000,-1000.0,0.00016712,2]
[421523426,1777818653000,-500.0,0.00016712,2]
[421523424,1777818653000,-500.0,0.00016712,2]
[421523428,1777818653000,-2758.51,0.00016712,2]
[421523422,1777818653000,-1546.05,0.00016712,2]
[421523421,1777818653000,-500.0,0.00016712,2]
[421523418,1777818653000,-500.0,0.00016712,2]
[421523415,1777818653000,-500.0,0.00016712,2]
[421523420,1777818653000,-3900.73,0.00016712,2]
[421523416,1777818653000,-1542.33,0.00016712,2]
[421523446,1777818653000,-500.0,0.00016712,2]
[421523417,1777818653000,-500.0,0.00016712,2]
[421523427,1777818653000,-500.0,0.00016712,2]
[421523425,1777818653000,-500.0,0.00016712,2]
[421523444,1777818653000,-500.0,0.00016712,2]
[421523435,1777818653000,-2442.16,0.00016712,2]
[421523442,1777818653000,-500.0,0.00016712,2]
[421523441,1777818653000,-861.19,0.00016712,2]
[421523447,1777818653000,-585.08,0.00016712,2]
[421523437,1777818653000,-237.78162236,0.00016712,2]
[421523439,1777818653000,-500.0,0.00016712,2]
[421523448,1777818653000,-377.22919026,0.00016712,2]
[421523440,1777818653000,-500.0,0.00016712,2]
[421523443,1777818653000,-500.0,0.00016712,2]
[421523438,1777818653000,-500.0,0.00016712,2]
[421523436,1777818653000,-577.02,0.00016712,2]
[421523430,1777818653000,-500.0,0.00016712,2]
[421523431,1777818653000,-500.0,0.00016712,2]
[421523434,1777818653000,-1262.45,0.00016712,2]
[421523445,1777818653000,-547.55966877,0.00016712,2]
[421523508,1777818654000,-500.0,0.00016712,2]
[421523513,1777818654000,-500.0,0.00016712,2]
[421523503,1777818654000,-500.0,0.00016712,2]
[421523519,1777818654000,-500.0,0.00016712,2]
[421523514,1777818654000,-500.0,0.00016712,2]
[421523504,1777818654000,-613.09255306,0.00016712,2]
[421523505,1777818654000,-500.0,0.00016712,2]
[421523507,1777818654000,-1992.37,0.00016712,2]
[421523516,1777818654000,-500.0,0.00016712,2]
[421523511,1777818654000,-500.0,0.00016712,2]
[421523510,1777818654000,-500.0,0.00016712,2]
[421523506,1777818654000,-514.01,0.00016712,2]
[421523509,1777818654000,-500.0,0.00016712,2]
[421523515,1777818654000,-4579.52,0.00016712,2]
[421523526,1777818654000,-500.0,0.00016712,2]
[421523502,1777818654000,-500.0,0.00016712,2]
[421523512,1777818654000,-500.0,0.00016712,2]
[421523496,1777818654000,-500.0,0.00016712,2]
[421523488,1777818654000,-393.23500019,0.00016712,2]
[421523501,1777818654000,-735.58,0.00016712,2]
[421523518,1777818654000,-2019.3,0.00016712,2]
[421523485,1777818654000,-500.0,0.00016712,2]
[421523489,1777818654000,-603.18,0.00016712,2]
[421523486,1777818654000,-3099.24,0.00016712,2]
[421523487,1777818654000,-500.0,0.00016712,2]
[421523490,1777818654000,-500.0,0.00016712,2]
[421523484,1777818654000,-500.0,0.00016712,2]
[421523500,1777818654000,-500.0,0.00016712,2]
[421523483,1777818654000,-668.58,0.00016712,2]
[421523491,1777818654000,-18256.22,0.00016712,2]
[421523493,1777818654000,-500.0,0.00016712,2]
[421523494,1777818654000,-500.0,0.00016712,2]
[421523499,1777818654000,-890.88,0.00016712,2]
[421523498,1777818654000,-500.0,0.00016712,2]
[421523495,1777818654000,-631.56,0.00016712,2]
[421523497,1777818654000,-500.0,0.00016712,2]
[421523492,1777818654000,-6485.23,0.00016712,2]
[421523517,1777818654000,-500.0,0.00016712,2]
[421523534,1777818654000,-500.0,0.00016712,2]
[421523520,1777818654000,-500.0,0.00016712,2]
[421523553,1777818654000,-500.0,0.00016712,2]
[421523543,1777818654000,-500.0,0.00016712,2]
[421523546,1777818654000,-760.6,0.00016712,2]
[421523544,1777818654000,-553.24,0.00016712,2]
[421523551,1777818654000,-500.0,0.00016712,2]
[421523547,1777818654000,-500.0,0.00016712,2]
[421523549,1777818654000,-287.33473399,0.00016712,2]
[421523541,1777818654000,-500.0,0.00016712,2]
[421523550,1777818654000,-500.0,0.00016712,2]
[421523554,1777818654000,-500.0,0.00016712,2]
[421523556,1777818654000,-500.0,0.00016712,2]
[421523558,1777818654000,-500.0,0.00016712,2]
[421523557,1777818654000,-18050.4,0.00016712,2]
[421523555,1777818654000,-500.0,0.00016712,2]
[421523560,1777818654000,-1106.89015279,0.00016712,2]
[421523527,1777818654000,-500.15865947,0.00016712,2]
[421523548,1777818654000,-500.0,0.00016712,2]
[421523542,1777818654000,-500.0,0.00016712,2]
[421523545,1777818654000,-611.23,0.00016712,2]
[421523536,1777818654000,-500.0,0.00016712,2]
[421523525,1777818654000,-500.0,0.00016712,2]
[421523552,1777818654000,-500.0,0.00016712,2]
[421523523,1777818654000,-962.12,0.00016712,2]
[421523524,1777818654000,-5089.57,0.00016712,2]
[421523521,1777818654000,-644.80914063,0.00016712,2]
[421523529,1777818654000,-2047.82,0.00016712,2]
[421523539,1777818654000,-1298.32,0.00016712,2]
[421523530,1777818654000,-1090.41,0.00016712,2]
[421523559,1777818654000,-636.51,0.00016712,2]
[421523522,1777818654000,-2447.86,0.00016712,2]
[421523535,1777818654000,-500.0,0.00016712,2]
[421523540,1777818654000,-6268.16,0.00016712,2]
[421523528,1777818654000,-972.37,0.00016712,2]
[421523537,1777818654000,-500.0,0.00016712,2]
[421523532,1777818654000,-3446.68,0.00016712,2]
[421523531,1777818654000,-500.0,0.00016712,2]
[421523533,1777818654000,-500.0,0.00016712,2]
[421523538,1777818654000,-3488.8,0.00016712,2]
[421523569,1777818655000,-16508.02,0.00016712,2]
[421523568,1777818655000,-500.0,0.00016712,2]
[421523571,1777818655000,-500.0,0.00016712,2]
[421523575,1777818655000,-1097.26,0.00016712,2]
[421523572,1777818655000,-722.9,0.00016712,2]
[421523570,1777818655000,-559.01,0.00016712,2]
[421523565,1777818655000,-500.0,0.00016712,2]
[421523566,1777818655000,-500.0,0.00016712,2]
[421523577,1777818655000,-2214.47,0.00016712,2]
[421523564,1777818655000,-500.0,0.00016712,2]
[421523563,1777818655000,-500.0,0.00016712,2]
[421523561,1777818655000,-5434.84984721,0.00016712,2]
[421523562,1777818655000,-500.0,0.00016712,2]
[421523574,1777818655000,-509.26464952,0.00016712,2]
[421523576,1777818655000,-516.15,0.00016712,2]
[421523567,1777818655000,-500.0,0.00016712,2]
[421523585,1777818655000,-500.0,0.00016712,2]
[421523579,1777818655000,-5344.0,0.00016712,2]
[421523593,1777818655000,-869.9715,0.00016438,2]
[421523592,1777818655000,-4499.57353029,0.00016712,2]
[421523586,1777818655000,-12647.89,0.00016712,2]
[421523583,1777818655000,-500.0,0.00016712,2]
[421523590,1777818655000,-500.0,0.00016712,2]
[421523587,1777818655000,-574.1,0.00016712,2]
[421523573,1777818655000,-500.0,0.00016712,2]
[421523578,1777818655000,-605.97,0.00016712,2]
[421523580,1777818655000,-5433.5,0.00016712,2]
[421523591,1777818655000,-567.38,0.00016712,2]
[421523582,1777818655000,-500.0,0.00016712,2]
[421523581,1777818655000,-500.0,0.00016712,2]
[421523589,1777818655000,-500.0,0.00016712,2]
[421523588,1777818655000,-500.0,0.00016712,2]
[421523584,1777818655000,-500.0,0.00016712,2]
[421523594,1777818657000,633.91251294,0.0001,2]
[421523595,1777818657000,11090.50268736,7.6e-05,2]
[421523596,1777818657000,83534.60501951,7.6e-05,2]
[421523676,1777819832000,-4923.50542053,0.00013,2]
[421523674,1777819832000,-182.20240826,0.00012999,2]
[421523675,1777819832000,-117.79759174,0.00012999,2]
[421523673,1777819832000,-5000.0,0.00012741,2]
[421523682,1777819841000,-327.55422988,0.00013,2]
[421523712,1777819843000,-3721.00883699,0.00013,2]
[421523714,1777819843000,-300.0,0.00013557,2]
[421523713,1777819843000,-234.42670022,0.00013146,2]
[421523715,1777819843000,-300.0,0.00013557,2]
[421523716,1777819843000,-300.0,0.00013557,2]
[421523717,1777819843000,-300.0,0.00013557,2]
[421523720,1777819843000,-300.0,0.00013557,2]
[421523719,1777819843000,-300.0,0.00013557,2]
[421523725,1777819843000,-300.0,0.00013557,2]
[421523718,1777819843000,-300.0,0.00013557,2]
[421523722,1777819843000,-300.0,0.00013557,2]
[421523723,1777819843000,-300.0,0.00013557,2]
[421523724,1777819843000,-300.0,0.00013557,2]
[421523726,1777819843000,-130.46446279,0.00013557,2]
[421523727,1777819843000,-169.53553721,0.00013557,2]
[421523729,1777819843000,-300.0,0.00013557,2]
[421523728,1777819843000,-300.0,0.00013557,2]
[421523721,1777819843000,-300.0,0.00013557,2]
[421523731,1777819844000,-1000.0,0.00013699,2]
[421523730,1777819844000,-1000.0,0.00013699,2]
[421523732,1777819844000,-675.7520116,0.00013799,2]
[421523734,1777819844000,-1629.98456819,0.00014175,2]
[421523736,1777819844000,-5385.46776078,0.00014694,2]
[421523735,1777819844000,-178.47172905,0.00014599,2]
[421523733,1777819844000,-600.0,0.00013827,2]
[421523767,1777819847000,-500.0,0.00014699,2]
[421523747,1777819847000,-1232.3487378,0.00014694,2]
[421523749,1777819847000,-500.0,0.00014699,2]
[421523750,1777819847000,-448.15342088,0.00014699,2]
[421523748,1777819847000,-500.0,0.00014699,2]
[421523754,1777819847000,-500.0,0.00014699,2]
[421523764,1777819847000,-500.0,0.00014699,2]
[421523765,1777819847000,-500.0,0.00014699,2]
[421523766,1777819847000,-500.0,0.00014699,2]
[421523757,1777819847000,-500.0,0.00014699,2]
[421523755,1777819847000,-500.0,0.00014699,2]
[421523774,1777819847000,-329.84953574,0.00014699,2]
[421523759,1777819847000,-500.0,0.00014699,2]
[421523763,1777819847000,-376.28371522,0.00014699,2]
[421523769,1777819847000,-500.0,0.00014699,2]
[421523768,1777819847000,-500.0,0.00014699,2]
[421523771,1777819847000,-500.0,0.00014699,2]
[421523770,1777819847000,-500.0,0.00014699,2]
[421523772,1777819847000,-182.32538579,0.00014699,2]
[421523775,1777819847000,-500.0,0.00014699,2]
[421523776,1777819847000,-1782.36072214,0.000147,2]
[421523773,1777819847000,-500.0,0.00014699,2]
[421523761,1777819847000,-500.0,0.00014699,2]
[421524697,1777820273000,29061.40699116,0.000219,120]
[421524733,1777820424000,387.72737548,0.00013233,14]
[421524736,1777820494000,-3029.1309366,0.00013026,2]
[421524766,1777820936000,2009.31,0.0002191,120]
[421524778,1777821031000,-1970.8690634,0.00012264,2]
[421524780,1777821031000,-3029.1309366,0.00012388,2]
[421524805,1777821037000,-1200.0,0.00013697,2]
[421524807,1777821037000,-156.0,0.00013699,2]
[421524806,1777821037000,-300.0,0.00013698,2]
[421524803,1777821037000,-200.0,0.00012929,2]
[421524804,1777821037000,-210.06473495,0.00013058,2]
[421524802,1777821037000,-161.82,0.00012639,2]
[421524800,1777821037000,-1895.71159557,0.00012388,2]
[421524809,1777821037000,-15539.8,0.00013699,2]
[421524810,1777821037000,-1000.0,0.00013699,2]
[421524801,1777821037000,-242.10055496,0.00012576,2]
[421524808,1777821037000,-1000.0,0.00013699,2]
[421524818,1777821037000,-300.0,0.00013971,2]
[421524813,1777821037000,-500.0,0.0001397,2]
[421524812,1777821037000,-300.0,0.00013969,2]
[421524820,1777821037000,-300.0,0.00013971,2]
[421524822,1777821037000,-300.0,0.00013971,2]
[421524815,1777821037000,-500.0,0.0001397,2]
[421524816,1777821037000,-300.0,0.00013971,2]
[421524817,1777821037000,-300.0,0.00013971,2]
[421524824,1777821037000,-300.0,0.00013971,2]
[421524814,1777821037000,-500.0,0.0001397,2]
[421524819,1777821037000,-300.0,0.00013971,2]
[421524811,1777821037000,-178.47172905,0.00013871,2]
[421524825,1777821038000,-300.0,0.00013971,2]
[421524838,1777821038000,-8540.47415794,0.00014387,2]
[421524837,1777821038000,-11242.88762631,0.00014387,2]
[421524826,1777821038000,-300.0,0.00013971,2]
[421524828,1777821038000,-300.0,0.00013971,2]
[421524831,1777821038000,-300.0,0.00013971,2]
[421524836,1777821038000,-186.38696155,0.00014386,2]
[421524833,1777821038000,-300.0,0.00013971,2]
[421524832,1777821038000,-300.0,0.00013971,2]
[421524834,1777821038000,-906.77346917,0.00014175,2]
[421524830,1777821038000,-300.0,0.00013971,2]
[421524835,1777821038000,-6221.7879591,0.00014386,2]
[421524829,1777821038000,-300.0,0.00013971,2]
[421525154,1777821046000,-5000.0,0.00014243,2]
[421525155,1777821046000,-35088.58025935,0.00014387,2]
[421525166,1777821416000,6594.41974158,0.0002,120]
[421525170,1777821607000,181.0,0.00020838,120]
[421525172,1777821640000,5203.24217,0.00021917,120]
[421525175,1777821745000,30000.0,0.000215,120]
[421525202,1777822233000,-1549.64006324,0.00010551,2]
[421525200,1777822233000,-1421.2607696,0.00010551,2]
[421525201,1777822233000,-679.45363298,0.00010551,2]
[421525199,1777822233000,-1349.64553418,0.00010551,2]
[421525203,1777822234000,-438.05624803,0.00010658,2]
[421525208,1777822234000,-708.01423423,0.00012588,2]
[421525204,1777822234000,-249.14043418,0.00010797,2]
[421525207,1777822234000,-300.0,0.00012587,2]
[421525205,1777822234000,-300.0,0.00010804,5]
[421525206,1777822234000,-200.0,0.00011775,2]
[421525230,1777822238000,-1000.0,0.00013699,2]
[421525221,1777822238000,-300.0,0.00012839,2]
[421525226,1777822238000,-300.0,0.00012839,2]
[421525225,1777822238000,-300.0,0.00012839,2]
[421525220,1777822238000,-300.0,0.00012839,2]
[421525224,1777822238000,-300.0,0.00012839,2]
[421525228,1777822238000,-300.0,0.00012839,2]
[421525216,1777822238000,-300.0,0.00012839,2]
[421525222,1777822238000,-300.0,0.00012839,2]
[421525218,1777822238000,-300.0,0.00012839,2]
[421525217,1777822238000,-300.0,0.00012839,2]
[421525213,1777822238000,-293.98571234,0.00012797,2]
[421525214,1777822238000,-300.0,0.00012839,2]
[421525215,1777822238000,-300.0,0.00012839,2]
[421525212,1777822238000,-14291.98576577,0.00012588,2]
[421525219,1777822238000,-300.0,0.00012839,2]
[421525229,1777822238000,-600.0,0.00013095,2]
[421525223,1777822238000,-300.0,0.00012839,2]
[421525232,1777822238000,-31776.4331244,0.00013968,2]
[421525246,1777822238000,-484.042256,0.00014068,2]
[421525245,1777822238000,-8058.92449344,0.00014068,2]
[421525247,1777822238000,-3677.50362038,0.00014068,2]
[421525227,1777822238000,-300.0,0.00012839,2]
[421525244,1777822238000,-3292.6025375,0.00014068,2]
[421525240,1777822238000,-1266.51594021,0.00014,2]
[421525239,1777822238000,-591.05007946,0.00014,2]
[421525241,1777822238000,-1409.19878886,0.00014,2]
[421525243,1777822238000,-263.53756428,0.00014067,2]
[421525236,1777822238000,-500.0,0.00013999,2]
[421525235,1777822238000,-534.201,0.0001397,2]
[421525238,1777822238000,-500.0,0.00013999,2]
[421525234,1777822238000,-222.03307881,0.0001397,2]
[421525231,1777822238000,-1000.0,0.00013699,2]
[421525233,1777822238000,-531.33142443,0.0001397,2]
[421525242,1777822238000,-1474.55915083,0.00014,2]
[421525237,1777822238000,-434.73953274,0.00013999,2]
[421525276,1777822246000,-528.79904169,0.00014068,2]
[421525278,1777822246000,-2585.5446755,0.00014085,2]
[421525277,1777822246000,-17139.60587839,0.00014068,2]
[421525284,1777822247000,3610.45211619,0.0001,2]
[421525285,1777822249000,2129.28809085,7.6e-05,2]
[421525804,1777823432000,-300.0,0.00010633,2]
[421525805,1777823432000,-300.0,0.00010633,2]
[421525814,1777823432000,-7424.04205892,0.00012243,2]
[421525803,1777823432000,-1458.18444598,0.00010528,2]
[421525806,1777823432000,-300.0,0.00010633,2]
[421525807,1777823432000,-1200.0,0.00010633,2]
[421525812,1777823432000,-300.0,0.00011068,2]
[421525813,1777823432000,-176.47,0.00011644,2]
[421525810,1777823432000,-569.0,0.00010634,2]
[421525809,1777823432000,-5000.0,0.00010634,2]
[421525811,1777823432000,-250.4794324,0.00011014,2]
[421525815,1777823432000,-876.86326639,0.00012243,2]
[421525808,1777823432000,-300.0,0.00010633,2]
[421525824,1777823438000,-1280.58934335,0.00012121,2]
[421525835,1777823440000,-300.0,0.00012363,2]
[421525832,1777823440000,-300.0,0.00012363,2]
[421525833,1777823440000,-300.0,0.00012363,2]
[421525828,1777823440000,-300.0,0.00012363,2]